[Event "Gibraltar Amateurs B 2019"]
[Site "Caleta"]
[Date "2019.01.30"]
[Round "5"]
[White "Gonzalez Pabollet, Jesus Maria S"]
[Black "Andersen, Guttorm"]
[Result "1-0"]
[ECO "B01"]
[WhiteElo "1875"]
[BlackElo "1801"]
[Annotator "NA RC"]
[PlyCount "63"]
[EventDate "2019.01.18"]
[EventType "swiss"]
[EventCountry "GGB"]
[SourceTitle "playchess.com"]
[Source "ChessBase"]
[SourceQuality "1"]
[TimeControl "6600+10"]

1. e4 {[%emt 0:02:16]} d5 {[%emt 0:00:42]} 2. exd5 {[%emt 0:00:28]} Nf6 {[%emt 0:00:20]} 3. Bb5+ {[%emt 0:03:29]} Bd7 {[%emt 0:00:49]} 4. Bc4 {[%emt 0:00:38]} b5 {[%emt 0:02:22]} 5. Bb3 {[%emt 0:00:14]} Bf5 {[%emt 0:01:19]} (5... a5 6. a4 bxa4 7. Rxa4 Bxa4 8. Bxa4+ Nbd7 9. Nf3 Qb8 10. Ne5 Qb4 11. c4 e6 12. O-O Bd6 13. dxe6 fxe6 14. d4 Bxe5 15. dxe5 {1-0 (32) Ladron de Guevara Pinto,P (2424)-Blazquez Gomez,J (2240) Linares 2018}) 6. Qe2 {[%emt 0:04:46] B01: Scandinavian Defence} Nxd5 $146 {[%emt 0:04:29]} ({Predecessor:} 6... a6 7. d3 Nxd5 8. Nf3 Nc6 9. Bxd5 Qxd5 10. Nc3 Qd7 11. Ne4 e6 12. Bf4 Bd6 13. Bxd6 cxd6 {½-½ (35) Kassay,L (1955)-Borhy,M (2126) Hajduboszormeny 2016}) 7. Qxb5+ {[%emt 0:20:37]} c6 {[%emt 0:00:05]} 8. Qe2 {[%emt 0:00:50]} ({Stronger than} 8. Qb7 Nb6 $17) 8... e6 {[%emt 0:07:24]} 9. Nc3 {[%emt 0:10:58]} Nb4 {[%emt 0:09:39]} (9... Be7 $14) 10. d3 {[%emt 0:06:39]} Nd7 {[%emt 0:09:20]} 11. a3 {[%emt 0:00:00]} Na6 {[%emt 0:02:59]} 12. d4 {[%emt 0:03:01]} Nc7 {[%emt 0:04:11]} 13. g4 {[%emt 0:31:04]} Bg6 {[%emt 0:03:43]} 14. h4 {[%emt 0:03:06]} h5 {[%emt 0:02:02]} 15. g5 {[%emt 0:04:49]} Nb6 {[%emt 0:01:02]} 16. Nf3 {[%emt 0:00:45]} Bd6 {[%emt 0:06:03]} 17. Ne4 {[%emt 0:04:38]} O-O {[%emt 0:05:01]} 18. c4 {[%emt 0:02:40]} Bxe4 {[%emt 0:02:33]} 19. Qxe4 {[%emt 0:00:05]} c5 {[%emt 0:00:25]} 20. dxc5 {[%emt 0:01:26]} ({But not} 20. Bc2 g6 $18) 20... Bxc5 {[%emt 0:00:47]} 21. Bc2 {[%emt 0:03:33]} g6 {[%emt 0:00:59]} 22. Bf4 {[%emt 0:00:05]} Ne8 {[%emt 0:09:10]} 23. Rd1 {[%emt 0:00:13]} Qc8 {[%emt 0:00:48]} 24. Ne5 {[%emt 0:01:22]} Nd6 {[%emt 0:17:17] [#]} 25. Rxd6 $18 {[%emt 0:00:04]} Bxd6 {[%emt 0:00:45]} 26. Nxg6 {[%emt 0:00:35]} f5 {[%emt 0:01:09]} 27. gxf6 {[%emt 0:00:16]} Rxf6 {[%emt 0:06:05]} 28. Bxd6 {[%emt 0:00:13]} Qxc4 {[%emt 0:03:04]} 29. Ne7+ {[%emt 0:00:11]} Kf8 {[%emt 0:00:30]} 30. Nd5+ {[%emt 0:00:29]} Ke8 {[%emt 0:03:14]} 31. Nxf6+ {[%emt 0:01:06]} Kd8 {[%emt 0:00:09]} 32. Rg1 {[%emt 0:01:01]} 1-0

[Event "Gibraltar Amateurs B 2019"]
[Site "Caleta"]
[Date "2019.01.30"]
[Round "5"]
[White "Lochte, Szilvia"]
[Black "Mahi Amit Doshi"]
[Result "0-1"]
[ECO "A11"]
[WhiteElo "1868"]
[BlackElo "1469"]
[Annotator "NA RC"]
[PlyCount "60"]
[EventDate "2019.01.18"]
[EventType "swiss"]
[EventCountry "GGB"]
[SourceTitle "playchess.com"]
[Source "ChessBase"]
[SourceQuality "1"]
[TimeControl "6600+10"]

1. c4 {[%emt 0:00:00]} c6 {[%emt 0:04:48]} 2. g3 {[%emt 0:00:25]} Nf6 {[%emt 0:00:29]} 3. Bg2 {[%emt 0:00:08]} d5 {[%emt 0:03:09]} 4. Nf3 {[%emt 0:00:10]} Bg4 {[%emt 0:00:13]} 5. Ne5 {[%emt 0:01:04]} Be6 {[%emt 0:00:29]} 6. b3 {[%emt 0:06:26] A11: English Opening: 1...c6} Nbd7 {[%emt 0:00:44]} 7. Nxd7 $146 {[%emt 0:02:00]} ({Better is Predecessor:} 7. d4 $11 Nxe5 8. dxe5 Nd7 9. cxd5 Bxd5 10. e4 Be6 11. f4 f5 12. Be3 Qa5+ 13. Qd2 Qxd2+ 14. Nxd2 fxe4 15. Bxe4 {½-½ (38) Timman,J (2562)-Van Foreest,J (2548) Hoogeveen 2015}) 7... Qxd7 {[%emt 0:00:51]} 8. d3 {[%emt 0:02:21]} g6 {[%emt 0:01:08]} 9. O-O {[%emt 0:00:53]} Bg7 {[%emt 0:00:50]} 10. Bb2 {[%emt 0:00:34]} Bh3 {[%emt 0:01:29]} 11. Nd2 {[%emt 0:04:45]} h5 {[%emt 0:02:02]} 12. Nf3 {[%emt 0:04:42]} h4 {[%emt 0:05:26]} 13. Bxf6 {[%emt 0:19:30]} Bxf6 {[%emt 0:00:08]} 14. Rc1 {[%emt 0:02:00]} Bxg2 {[%emt 0:01:13]} 15. Kxg2 {[%emt 0:00:10]} hxg3 {[%emt 0:01:24]} 16. fxg3 {[%emt 0:00:22]} Qh3+ {[%emt 0:01:12]} 17. Kf2 {[%emt 0:01:45] [#]} g5 $1 {[%emt 0:01:09]} 18. Rh1 {[%emt 0:03:13]} g4 {[%emt 0:05:01]} 19. Ne1 {[%emt 0:01:42]} Qh5 {[%emt 0:00:48]} 20. Ng2 {[%emt 0:02:22]} Qf5+ {[%emt 0:03:51]} 21. Ke1 {[%emt 0:00:45]} Qe5 $2 {[%emt 0:01:38]} ({Black should play} 21... Bg5 $19 22. Rc2 d4) 22. Kf2 {[%emt 0:02:27]} Qf5+ {[%emt 0:03:04]} 23. Ke1 {[%emt 0:00:40]} Qe5 {[%emt 0:07:11]} 24. Kf2 {[%emt 0:00:15]} Bg5 {[%emt 0:01:34]} 25. Rc2 {[%emt 0:05:31]} d4 {[%emt 0:00:35]} 26. Qf1 {[%emt 0:07:48]} Rh6 {[%emt 0:01:24]} 27. Ke1 $19 {[%emt 0:01:50]} (27. Nf4 $142) 27... Rh4 {[%emt 0:04:13]} 28. h3 Rxh3 {[%emt 0:00:10]} 29. Kf2 {[%emt 0:00:11]} Rh2 30. e3 {[%emt 0:00:02]} Rh8 {[%emt 0:00:02]} 0-1

[Event "Gibraltar Amateurs B 2019"]
[Site "Caleta"]
[Date "2019.01.30"]
[Round "5"]
[White "Robson, Paul E"]
[Black "Deus, Pedro"]
[Result "1-0"]
[ECO "C56"]
[WhiteElo "1861"]
[BlackElo "1729"]
[Annotator "NA RC"]
[PlyCount "89"]
[EventDate "2019.01.18"]
[EventType "swiss"]
[EventCountry "GGB"]
[SourceTitle "playchess.com"]
[Source "ChessBase"]
[SourceQuality "1"]
[TimeControl "6600+10"]

1. e4 {[%emt 0:00:00]} e5 {[%emt 0:00:00]} 2. d4 {[%emt 0:00:00]} exd4 {[%emt 0:00:01]} 3. Nf3 {[%emt 0:00:06]} Nc6 {[%emt 0:00:08]} 4. Bc4 {[%emt 0:00:06]} Nf6 {[%emt 0:00:08]} 5. e5 {[%emt 0:00:07]} d5 {[%emt 0:00:08]} 6. Bb5 {[%emt 0:00:09]} Ne4 {[%emt 0:00:08]} 7. Nxd4 {[%emt 0:00:08]} Bd7 {[%emt 0:00:06]} 8. Bxc6 {[%emt 0:00:07]} bxc6 {[%emt 0:00:05]} 9. O-O {[%emt 0:00:10]} Bc5 {[%emt 0:00:07]} 10. Be3 {[%emt 0:01:10]} Qb8 {[%emt 0:03:57]} 11. b3 {[%emt 0:08:59]} Bb6 {[%emt 0:10:40]} 12. f3 {[%emt 0:01:21]} Nc5 {[%emt 0:01:06]} 13. f4 {[%emt 0:02:10]} Ne4 {[%emt 0:00:52]} 14. f5 {[%emt 0:10:56]} c5 {[%emt 0:02:43]} 15. Ne2 {[%emt 0:08:30]} d4 {[%emt 0:00:31]} 16. e6 {[%emt 0:03:01]} (16. Bc1 $11 {keeps the balance.}) 16... fxe6 {[%emt 0:05:21]} 17. fxe6 {[%emt 0:00:59]} Bxe6 {[%emt 0:00:22]} 18. Nf4 {[%emt 0:07:18]} O-O {[%emt 0:01:46]} 19. Nxe6 {[%emt 0:05:00]} Rxf1+ {[%emt 0:00:17]} 20. Kxf1 {[%emt 0:04:49]} dxe3 $4 {[%emt 0:00:25]} (20... Qe8 $11 21. Qg4 Qf7+ 22. Bf4 Re8 23. Nxg7 Qxg7 24. Qxg7+ Kxg7) 21. Qg4 {[%emt 0:02:57]} g6 {[%emt 0:03:45]} 22. Qxe4 {[%emt 0:00:53]} Qe8 {[%emt 0:00:46]} 23. Ng5 {[%emt 0:22:18]} Qf8+ {[%emt 0:23:35]} 24. Nf3 {[%emt 0:01:49]} Re8 {[%emt 0:01:31]} 25. Qc4+ {[%emt 0:02:14]} Kg7 {[%emt 0:03:33]} 26. Nc3 {[%emt 0:01:23]} Qf5 {[%emt 0:10:22]} 27. Qd3 {[%emt 0:05:12]} Qf6 {[%emt 0:00:15]} 28. Rd1 {[%emt 0:00:22]} c6 {[%emt 0:10:04]} 29. Ne4 {[%emt 0:04:45]} e2+ {[%emt 0:05:24]} 30. Kxe2 {[%emt 0:01:19]} c4 {[%emt 0:03:56]} 31. bxc4 $2 {[%emt 0:02:24]} (31. Qd7+ $18 {is more deadly.} Re7 32. Kf1) 31... Re7 $2 {[%emt 0:03:50]} (31... Qf4) 32. Kf1 {[%emt 0:00:54]} Qf4 {[%emt 0:02:00]} 33. Re1 {[%emt 0:00:54]} Rf7 {[%emt 0:00:38]} 34. Qd6 {[%emt 0:01:04]} Qh6 {[%emt 0:01:39]} 35. Qe5+ {[%emt 0:00:38]} Kg8 {[%emt 0:01:50]} 36. Nf6+ $2 {[%emt 0:00:49]} Kf8 $1 {[%emt 0:01:33] [#]} 37. Nd7+ $1 {[%emt 0:00:59] Back Rank, Clearance} Kg8 {[%emt 0:00:30]} 38. Nf6+ {[%emt 0:01:38]} (38. c5 $18 Rxf3+ 39. gxf3 Qh3+ 40. Kf2 Qxd7 41. cxb6 axb6 42. Qe6+ Qf7 43. Qxf7+ Kxf7 44. a4) 38... Kf8 {[%emt 0:00:10]} 39. Ng4 {[%emt 0:00:24]} Rxf3+ {[%emt 0:03:40]} 40. gxf3 {[%emt 0:00:01]} Qh3+ {[%emt 0:00:20]} 41. Ke2 {[%emt 0:00:19]} Qg2+ {[%emt 0:00:12]} 42. Kd3 {[%emt 0:00:26]} Qxf3+ {[%emt 0:00:25]} 43. Ne3 {[%emt 0:00:16]} Kg8 {[%emt 0:02:00]} 44. c5 {[%emt 0:01:18]} Ba5 {[%emt 0:00:28]} 45. Qb8+ $18 {[%emt 0:00:16]} 1-0

[Event "Gibraltar Amateurs B 2019"]
[Site "Caleta"]
[Date "2019.01.30"]
[Round "5"]
[White "Bosschem, Eddy"]
[Black "Marcos Herrero, Francisco"]
[Result "1-0"]
[ECO "A48"]
[WhiteElo "1847"]
[BlackElo "1855"]
[Annotator "NA RC"]
[PlyCount "143"]
[EventDate "2019.01.18"]
[EventType "swiss"]
[EventCountry "GGB"]
[SourceTitle "playchess.com"]
[Source "ChessBase"]
[SourceQuality "1"]
[TimeControl "6600+10"]

1. d4 {[%emt 0:00:00]} Nf6 {[%emt 0:00:00]} 2. Nf3 {[%emt 0:00:02]} c5 {[%emt 0:00:00]} 3. e3 {[%emt 0:00:05]} g6 {[%emt 0:01:08]} 4. c3 {[%emt 0:02:28]} Bg7 {[%emt 0:00:58]} 5. Nbd2 {[%emt 0:00:41]} cxd4 {[%emt 0:04:09]} 6. exd4 {[%emt 0:00:28]} O-O {[%emt 0:00:25]} 7. Bd3 {[%emt 0:01:57]} d5 {[%emt 0:00:12]} 8. O-O {[%emt 0:00:09]} Nc6 {[%emt 0:00:14]} 9. h3 {[%emt 0:00:15]} Be6 {[%emt 0:03:04]} 10. Re1 {[%emt 0:08:06]} Qc8 {[%emt 0:07:30]} 11. Bf1 {[%emt 0:00:07]} a6 {[%emt 0:03:22]} 12. Nb3 {[%emt 0:08:43]} h5 {[%emt 0:08:32]} 13. Bf4 {[%emt 0:07:23]} Ne4 {[%emt 0:02:24]} 14. Ng5 {[%emt 0:01:04]} Bf5 {[%emt 0:04:21]} 15. Nxe4 {[%emt 0:05:54]} Bxe4 {[%emt 0:07:12]} 16. Nc5 {[%emt 0:03:40]} Bf5 {[%emt 0:00:44]} 17. Nd3 {[%emt 0:07:01]} (17. Qb3 $16) 17... b6 {[%emt 0:11:40]} 18. Qb3 {[%emt 0:06:15]} Qd8 {[%emt 0:03:13]} 19. Ne5 {[%emt 0:09:51]} Nxe5 {[%emt 0:03:22]} 20. Bxe5 {[%emt 0:00:10]} Bxe5 {[%emt 0:01:57]} 21. Rxe5 {[%emt 0:01:18]} Be6 {[%emt 0:00:05]} 22. Rae1 {[%emt 0:00:22]} Qd6 {[%emt 0:00:08]} 23. Bd3 {[%emt 0:00:20]} Kg7 {[%emt 0:09:43]} 24. Qc2 {[%emt 0:01:04]} Bd7 {[%emt 0:00:47]} 25. Qe2 {[%emt 0:09:10]} (25. Rxe7 $18 Rfe8 26. Rxe8 Bxe8 27. Re5) 25... e6 {[%emt 0:03:58]} 26. Qd2 {[%emt 0:12:55]} ({Reject} 26. Bxa6 b5 $15) 26... b5 {[%emt 0:02:56]} ({Black should play} 26... h4 $14) 27. Qg5 {[%emt 0:02:03]} Be8 {[%emt 0:06:30]} 28. Qg3 {[%emt 0:00:38]} Rh8 {[%emt 0:00:37]} 29. Qf3 {[%emt 0:03:16]} Ra7 {[%emt 0:04:58]} 30. g4 {[%emt 0:05:21]} (30. Qe2 $14) 30... hxg4 {[%emt 0:02:06]} 31. Qxg4 {[%emt 0:00:39]} Qe7 {[%emt 0:00:23]} 32. Rxd5 {[%emt 0:01:38]} Rh4 {[%emt 0:02:36]} 33. Qg3 {[%emt 0:01:13]} Qf6 {[%emt 0:01:38]} 34. Rde5 {[%emt 0:02:06]} Bc6 {[%emt 0:01:37]} 35. Be4 {[%emt 0:01:19]} Rc7 $2 {[%emt 0:06:50]} (35... Bxe4 $16 {was worth a try.} 36. R1xe4 (36. R5xe4 Rxe4) 36... Rxe4 37. Rxe4 Qf5) 36. Bxc6 {[%emt 0:01:09]} Rxc6 {[%emt 0:00:02]} 37. a3 {[%emt 0:00:14]} Rf4 {[%emt 0:02:10]} 38. R1e3 {[%emt 0:00:13]} Rc8 {[%emt 0:00:14]} 39. Rh5 {[%emt 0:03:03]} Rxf2 {[%emt 0:00:58]} 40. Qxf2 {[%emt 0:00:11]} Qxf2+ {[%emt 0:00:03]} 41. Kxf2 {[%emt 0:00:01]} gxh5 {[%emt 0:00:00]} 42. Re5 {[%emt 0:00:22]} Kg6 {[%emt 0:00:06]} 43. Kf3 {[%emt 0:00:05]} Rc6 {[%emt 0:00:01]} 44. h4 {[%emt 0:02:04]} f6 {[%emt 0:00:01]} 45. Rc5 {[%emt 0:00:01]} Rd6 {[%emt 0:00:01]} 46. Rc8 {[%emt 0:00:08]} Rd5 {[%emt 0:00:28]} 47. Rc6 {[%emt 0:00:31]} Rf5+ {[%emt 0:00:10]} 48. Ke3 {[%emt 0:00:18]} e5 {[%emt 0:00:02]} 49. Rxa6 {[%emt 0:00:07]} exd4+ {[%emt 0:00:02]} 50. cxd4 {[%emt 0:00:01]} Rf1 {[%emt 0:01:43]} 51. Rb6 {[%emt 0:00:08]} Re1+ {[%emt 0:00:02]} 52. Kd3 {[%emt 0:00:26]} Rd1+ {[%emt 0:00:02]} 53. Ke4 {[%emt 0:00:00]} Re1+ {[%emt 0:00:01]} 54. Kd5 {[%emt 0:00:02]} Rh1 {[%emt 0:00:03]} 55. Rxb5 {[%emt 0:00:08]} Rxh4 {[%emt 0:00:01]} 56. a4 {[%emt 0:00:32]} Rh1 {[%emt 0:00:07]} 57. a5 {[%emt 0:00:10]} h4 {[%emt 0:00:02]} 58. Ke4 $4 {[%emt 0:00:09]} (58. Rb8 $18) 58... Rf1 $2 {[%emt 0:00:14]} (58... h3 $19 59. Rb3 Re1+ 60. Kd5 h2) 59. Rb3 {[%emt 0:00:02]} Kg5 $2 {[%emt 0:00:17]} (59... f5+ $16 60. Ke5 Ra1) 60. Ke3 $4 {[%emt 0:00:18]} (60. a6 $18 f5+ 61. Ke5 Re1+ 62. Kd6) 60... h3 {[%emt 0:00:20]} 61. Ke2 {[%emt 0:00:00]} Ra1 {[%emt 0:00:06]} 62. Rxh3 {[%emt 0:00:03]} Rxa5 {[%emt 0:00:01]} 63. Rd3 {[%emt 0:00:11]} (63. Kd3 $16) 63... f5 {[%emt 0:00:04]} 64. Kf3 {[%emt 0:00:02]} Rb5 {[%emt 0:00:01]} 65. b3 {[%emt 0:00:01]} f4 {[%emt 0:00:10]} 66. d5 {[%emt 0:00:03]} Rb7 $2 {[%emt 0:00:13]} (66... Kf5 $11) 67. d6 {[%emt 0:00:01]} Rd7 {[%emt 0:00:01]} 68. Rd5+ {[%emt 0:00:08]} Kf6 {[%emt 0:00:04]} 69. Kxf4 {[%emt 0:00:00]} Ke6 {[%emt 0:00:00]} 70. Ke4 {[%emt 0:00:15]} Rb7 $2 {[%emt 0:00:13]} (70... Rxd6 $11 71. Rxd6+ Kxd6 72. Kd4 Kc6 73. Kc4 Kb6 74. Kb4 Kc6 75. Ka5 Kb7) 71. d7 {[%emt 0:00:02]} Rb4+ {[%emt 0:00:01]} 72. Rd4 {[%emt 0:00:07]} 1-0

[Event "Gibraltar Amateurs B 2019"]
[Site "Caleta"]
[Date "2019.01.30"]
[Round "5"]
[White "Sahil Dhawan"]
[Black "Bauer, Dieter"]
[Result "1-0"]
[ECO "A37"]
[WhiteElo "1843"]
[BlackElo "1714"]
[Annotator "NA"]
[PlyCount "38"]
[EventDate "2019.01.18"]
[EventType "swiss"]
[EventCountry "GGB"]
[SourceTitle "playchess.com"]
[Source "ChessBase"]
[SourceQuality "1"]
[TimeControl "6600+10"]

1. c4 {[%emt 0:00:00]} e5 {[%emt 0:00:46]} 2. Nc3 {[%emt 0:00:03]} d6 {[%emt 0:02:15]} 3. g3 {[%emt 0:00:17]} g6 {[%emt 0:02:39]} 4. Bg2 {[%emt 0:00:10]} Bg7 {[%emt 0:00:06]} 5. d3 {[%emt 0:01:37]} c5 {[%emt 0:00:46]} 6. Nf3 {[%emt 0:00:31]} Ne7 {[%emt 0:00:28]} 7. a3 {[%emt 0:00:30]} Nbc6 {[%emt 0:00:43]} 8. Rb1 {[%emt 0:00:09]} a5 9. O-O {[%emt 0:00:32]} O-O {[%emt 0:00:27]} 10. Ne1 {[%emt 0:00:39]} f5 {[%emt 0:01:42] A37: Symmetrical English vs ...g6: 4 Bg2 Bg7 5 Nf3} 11. Nc2 {[%emt 0:01:40]} Be6 {[%emt 0:02:06] LiveBook: 3 Games} 12. Ne3 {[%emt 0:04:14]} f4 {[%emt 0:06:55]} 13. Ned5 {[%emt 0:01:03]} g5 {[%emt 0:02:30]} 14. b4 {[%emt 0:02:17]} axb4 {[%emt 0:00:02]} 15. axb4 {[%emt 0:00:03]} cxb4 {[%emt 0:10:50]} 16. Nxb4 {[%emt 0:00:17]} Qd7 $146 {[%emt 0:02:14]} ({Predecessor:} 16... Rf7 17. Ne4 Nf5 18. Nc2 h6 {½-½ (51) Bakre,T (2522)-Hamdani,R (2313) Biel 2011}) {Better is} 17. Nbd5 $11 {[%emt 0:15:44]} (17. Nxc6) 17... Bxd5 {[%emt 0:00:03]} 18. Nxd5 {[%emt 0:00:02]} Nxd5 19. Bxd5+ Kh8 {[%emt 0:00:02]} 1-0

[Event "Gibraltar Amateurs B 2019"]
[Site "Caleta"]
[Date "2019.01.30"]
[Round "5"]
[White "Carr, Jay"]
[Black "Sagar Siya"]
[Result "0-1"]
[ECO "A16"]
[WhiteElo "1842"]
[BlackElo "1616"]
[Annotator "NA RC"]
[PlyCount "132"]
[EventDate "2019.01.18"]
[EventType "swiss"]
[EventCountry "GGB"]
[SourceTitle "playchess.com"]
[Source "ChessBase"]
[SourceQuality "1"]
[TimeControl "6600+10"]

1. c4 {[%emt 0:00:00]} Nf6 {[%emt 0:00:46]} 2. g3 {[%emt 0:00:00]} g6 {[%emt 0:00:21]} 3. Bg2 {[%emt 0:00:04]} d5 {[%emt 0:00:17]} 4. cxd5 {[%emt 0:00:29]} Nxd5 {[%emt 0:00:09]} 5. Nc3 {[%emt 0:00:06]} Nxc3 {[%emt 0:00:45]} 6. bxc3 {[%emt 0:00:05]} Bg7 {[%emt 0:00:58] LiveBook: 590 Games} 7. Rb1 {[%emt 0:00:05]} c6 {[%emt 0:00:23]} 8. Nf3 {[%emt 0:00:08]} O-O {[%emt 0:00:13]} 9. O-O {[%emt 0:00:04]} b6 {[%emt 0:02:08]} 10. c4 {[%emt 0:02:18]} Bb7 {[%emt 0:01:50]} 11. Bb2 {[%emt 0:04:03]} Bxb2 $146 {[%emt 0:01:44] A16: English Opening: 1...Nf6 with ...d5} ({Predecessor:} 11... c5 12. Bxg7 Kxg7 13. d3 Nd7 14. a4 Qc7 15. a5 Bc6 16. Qd2 bxa5 17. Nh4 Bxg2 18. Nxg2 a4 19. Ne3 {1-0 (54) Serper,G (2535)-Zugic,I (2335) North Bay 1998}) 12. Rxb2 {[%emt 0:00:07]} c5 {[%emt 0:00:30]} 13. d3 {[%emt 0:03:03]} Nc6 {[%emt 0:01:53]} 14. Ne5 {[%emt 0:10:22]} Qc7 {[%emt 0:02:00]} 15. Nxc6 {[%emt 0:03:51]} Bxc6 {[%emt 0:00:14]} 16. Bxc6 {[%emt 0:00:07]} Qxc6 {[%emt 0:00:18]} 17. Qc2 {[%emt 0:09:06]} Rfd8 {[%emt 0:01:13]} 18. a4 {[%emt 0:04:19]} h5 {[%emt 0:00:59]} 19. h4 {[%emt 0:06:02]} Qf6 {[%emt 0:03:46]} 20. Qd2 {[%emt 0:01:06]} Rd4 {[%emt 0:03:29]} 21. f3 {[%emt 0:11:54]} Rad8 {[%emt 0:00:16]} 22. Qg5 {[%emt 0:10:32]} Qd6 {[%emt 0:02:19]} 23. Kg2 {[%emt 0:02:10]} Kh7 {[%emt 0:03:27]} 24. Qe3 {[%emt 0:02:48]} f6 {[%emt 0:03:08]} (24... f5 $11) 25. Rfb1 {[%emt 0:03:01]} (25. a5 $14) 25... Rg8 {[%emt 0:02:53]} (25... g5 $5) 26. f4 {[%emt 0:10:35]} g5 {[%emt 0:02:09]} 27. Qf3 {[%emt 0:11:11]} Kh6 {[%emt 0:04:46]} (27... gxf4 $11 28. Qxh5+ Kg7) 28. hxg5+ {[%emt 0:01:31]} fxg5 {[%emt 0:00:25]} 29. Rh1 {[%emt 0:05:35]} Qg6 {[%emt 0:02:20]} 30. f5 {[%emt 0:01:16]} Qf7 {[%emt 0:01:41]} 31. e4 {[%emt 0:04:10]} Rgd8 {[%emt 0:05:30]} (31... Rd7 $16 {is a better defense.}) 32. Rb3 {[%emt 0:00:23]} Rg8 {[%emt 0:09:47]} 33. Qe3 {[%emt 0:00:25]} Kh7 {[%emt 0:01:41] [#]} 34. Rbb1 {[%emt 0:00:14]} (34. a5 $1 $18 {[%mdl 512]}) 34... h4 {[%emt 0:02:37]} 35. Rh3 {[%emt 0:00:33]} (35. Kf2 $16) 35... Qg7 {[%emt 0:05:11]} 36. Rbh1 {[%emt 0:00:05] [#]} (36. Qe2 $11) 36... Rgd8 $1 {[%emt 0:02:53]} 37. Rd1 {[%emt 0:00:47] [#]} ({Don't go for} 37. gxh4 $2 g4 $19) 37... Rxc4 $1 {[%emt 0:02:54]} 38. Qe2 {[%emt 0:00:04]} Rb4 {[%emt 0:04:08]} 39. Qh5+ {[%emt 0:00:09]} Kg8 {[%emt 0:00:57]} 40. gxh4 {[%emt 0:00:03]} gxh4+ $2 {[%emt 0:02:40] [#]} (40... g4 $1 $11 41. Re3 Rxa4) 41. Kh1 $1 {[%emt 0:00:00]} Qh7 {[%emt 0:01:51]} 42. Qg5+ $2 {[%emt 0:00:49]} (42. Rg1+ {mates} Qg7 43. Rxh4 Qxg1+ {[%mdl 64] Remove Defender} 44. Kxg1 Rb1+ 45. Kf2 Rb2+ 46. Ke3 Rxd3+ 47. Kxd3) 42... Kf8 {[%emt 0:02:21]} 43. Rxh4 {[%emt 0:00:15]} Qg7 {[%emt 0:00:26]} 44. Qh5 {[%emt 0:00:10]} Qf7 {[%emt 0:02:32]} 45. Qh8+ {[%emt 0:00:29]} Qg8 {[%emt 0:00:27]} 46. Rg1 {[%emt 0:00:11]} Qxh8 {[%emt 0:01:11]} 47. Rxh8+ {[%emt 0:00:01]} Kf7 {[%emt 0:00:11]} 48. Rxd8 {[%emt 0:00:02]} Rxa4 {[%emt 0:00:13]} 49. e5 {[%emt 0:00:14]} b5 {[%emt 0:00:53]} 50. Rdg8 $2 {[%emt 0:00:13]} (50. Rgg8 {mates} e6 51. f6 Ra1+ 52. Kg2 Ra2+ 53. Kf3 Rf2+ 54. Kxf2 c4 55. Rg7#) 50... Rh4+ {[%emt 0:00:25]} 51. Kg2 {[%emt 0:00:17]} Kxg8 {[%emt 0:00:17]} 52. Kf3+ {[%emt 0:00:25]} Kf7 {[%emt 0:00:51]} 53. Rc1 {[%emt 0:00:34]} Rd4 {[%emt 0:02:07]} 54. Ke3 {[%emt 0:00:06]} Rd5 {[%emt 0:01:28]} 55. Ke4 {[%emt 0:00:01]} e6 {[%emt 0:02:01]} 56. f6 {[%emt 0:00:01]} a5 {[%emt 0:00:40]} 57. Rh1 {[%emt 0:00:04]} Rd4+ {[%emt 0:00:42]} 58. Ke3 {[%emt 0:00:01]} a4 {[%emt 0:01:17]} 59. Rh7+ {[%emt 0:00:01]} Kf8 {[%emt 0:00:31]} 60. Re7 {[%emt 0:00:20]} a3 {[%emt 0:01:02]} 61. Rxe6 {[%emt 0:00:01]} a2 {[%emt 0:00:23]} 62. Ra6 {[%emt 0:00:05]} Ra4 {[%emt 0:00:14]} 63. Rb6 {[%emt 0:00:37]} a1=Q {[%emt 0:01:02]} 64. Rb8+ {[%emt 0:00:17]} Kf7 {[%emt 0:00:16]} 65. Rb7+ {[%emt 0:00:01]} Kg6 {[%emt 0:00:17]} 66. Rg7+ {[%emt 0:00:23]} Kf5 {[%emt 0:00:19]} 0-1

[Event "Gibraltar Amateurs B 2019"]
[Site "Caleta"]
[Date "2019.01.30"]
[Round "5"]
[White "Francois-Haugrin, Said"]
[Black "Greco, Joseph"]
[Result "1-0"]
[ECO "B01"]
[WhiteElo "1825"]
[BlackElo "1574"]
[Annotator "NA RC"]
[PlyCount "63"]
[EventDate "2019.01.18"]
[EventType "swiss"]
[EventCountry "GGB"]
[SourceTitle "playchess.com"]
[Source "ChessBase"]
[SourceQuality "1"]
[TimeControl "6600+10"]

{[%evp 11,62,75,32767,139,32767,177,32767,32767,32767,32767,32767,199,204,32767,32767,32767,166,32767,32767,125,32767,273,274,32767,32767,32767,32767,579,610,32767,32767,32767,32767,614,689,32767,701,743,712,795,722,745,837,32767,32767,32767,1661,1906,1845,2085,2080,2377,1987]} 1. e4 {[%emt 0:03:46]} d5 {[%emt 0:00:00]} 2. exd5 {[%emt 0:01:07]} Nf6 {[%emt 0:00:19]} 3. Bb5+ {[%emt 0:00:09]} Bd7 {[%emt 0:00:36]} 4. Bc4 {[%emt 0:00:05]} Bg4 {[%emt 0:06:07]} 5. f3 {[%emt 0:00:05]} Bh5 {[%emt 0:00:17]} 6. Nc3 {[%emt 0:00:31]} Nbd7 {[%emt 0:00:22]} 7. d4 {[%emt 0:00:32]} a6 {[%emt 0:00:27]} 8. g4 {[%emt 0:02:41]} Bg6 {[%emt 0:00:15]} 9. f4 {[%emt 0:05:06]} b5 {[%emt 0:12:42]} 10. Bb3 {[%emt 0:00:09]} Be4 {[%emt 0:00:18]} 11. Nxe4 {[%emt 0:00:23]} Nxe4 {[%emt 0:00:02]} 12. Qf3 {[%emt 0:00:16]} Nd6 {[%emt 0:00:28]} 13. c3 {[%emt 0:28:37]} Nb6 {[%emt 0:12:34]} 14. Bc2 {[%emt 0:15:24]} Qd7 {[%emt 0:11:28]} 15. Ne2 {[%emt 0:00:59]} Rd8 {[%emt 0:01:26]} 16. f5 {[%emt 0:04:21]} b4 {[%emt 0:13:01]} 17. Nf4 {[%emt 0:04:04]} bxc3 {[%emt 0:09:47]} 18. bxc3 {[%emt 0:00:08]} Qb5 {[%emt 0:00:42]} 19. a4 {[%emt 0:03:29]} Qa5 {[%emt 0:01:09]} 20. Ba3 {[%emt 0:02:23]} Nbc4 {[%emt 0:03:17]} 21. Bb4 {[%emt 0:00:16]} Qb6 {[%emt 0:00:17]} 22. a5 {[%emt 0:00:21]} Qa7 {[%emt 0:00:30]} 23. Ba4+ {[%emt 0:00:26]} Nb5 {[%emt 0:01:00]} 24. Qe2 {[%emt 0:01:02]} Ncd6 {[%emt 0:00:59]} 25. Bc5 {[%emt 0:00:28]} Qa8 {[%emt 0:01:05]} 26. c4 {[%emt 0:00:11]} c6 {[%emt 0:00:14]} 27. cxb5 {[%emt 0:00:51]} cxb5 {[%emt 0:00:35]} 28. Bb3 {[%emt 0:00:05]} e6 {[%emt 0:00:33]} 29. fxe6 {[%emt 0:00:06]} f6 {[%emt 0:00:44] [#]} 30. g5 $18 {[%emt 0:01:35]} h5 {[%emt 0:01:44]} 31. gxf6 {[%emt 0:00:40]} gxf6 {[%emt 0:00:29]} 32. Ng6 {[%emt 0:00:23]} 1-0